Cogmind - Beta 16.1 @@@ ROGUE MODE // 2026.03.29 @ 12:57:53 Player: Plexion Result: Destroyed by G-34 Mercenary with Small Laser Performance ------------- Evolutions (0) 0 Regions Visited (1) 200 Robots Destroyed (12) 60 Value Destroyed (272) 272 Prototype IDs (0) 0 Alien Tech Used (0) 0 Bonus (0) 0 TOTAL SCORE: 532 Bonus ------- None Cogmind --------- Core Integrity 0/250 Matter 297/300 Energy 97/100 System Corruption 0% Temperature Cool (6) Movement Treading (160) Location -10/Materials Parts ------- > --- POWER (1) -------- (None) > --- PROPULSION (2) --- Light Treads > --- UTILITY (2) ------ Small Storage Unit > --- WEAPON (2) ------- Small Laser > --- INVENTORY (8) ---- Light Ion Engine Compact Wheel High-capacity Storage Unit Huge Storage Unit Seismic Detector Hacking Suite Peak State ------------ > --- POWER ------------ Light Ion Engine > --- PROPULSION ------- Light Treads Light Treads > --- UTILITY ---------- Small Storage Unit Seismic Detector > --- WEAPON ----------- Medium Laser Assault Rifle > --- INVENTORY -------- Light Ion Engine Light Treads Wheel Compact Wheel High-capacity Storage Unit Huge Storage Unit Hacking Suite Small Laser [Rating: 8] Favorites ----------- Power Light Ion Engine Engine Light Ion Engine Propulsion Light Treads Treads Light Treads Utility Small Storage Unit Device Seismic Detector Storage Small Storage Unit Weapon Medium Laser Energy Gun Medium Laser Ballistic Gun Assault Rifle Build | -11 -10 ------- Run | Yrd Mat Slots Evolved . | . . Power . | . . Propulsion . | . . Utility . | . . Weapon . | . . Parts Attached 9 | 7 2 Power 1 | . 1 Engine 1 | . 1 Core . | . . Reactor . | . . Propulsion 3 | 2 1 Treads 3 | 2 1 Leg . | . . Wheel . | . . Hover . | . . Flight . | . . Utility 2 | 2 . Device 1 | 1 . Storage 1 | 1 . Processor . | . . Hackware . | . . Protection . | . . Artifact . | . . Weapon 3 | 3 . Energy Gun 2 | 2 . Energy Cannon . | . . Ballistic Gun 1 | 1 . Ballistic Cannon . | . . Launcher . | . . Special Weapon . | . . Impact Weapon . | . . Slashing Weapon . | . . Piercing Weapon . | . . Special Melee Weapon . | . . Unidentified Prototypes . | . . Parts Lost 5 | . 5 Power 1 | . 1 Propulsion 2 | . 2 Utility . | . . Weapon 2 | . 2 Highest Loss Streak 5 | . 5 To Critical Strikes . | . . Average Backups 6 | 3 7 Power 1 | 1 1 Propulsion 2 | 1 2 Utility 1 | . 2 Weapon . | . . Tool/Special . | . . Unused Backups 7 | 1 6 Power 1 | . 1 Propulsion 3 | 1 2 Utility 3 | . 3 Weapon . | . . Tool/Special . | . . Average Slot Usage (%) 83 | . 83 Engine 4 | . 4 Treads 26 | . 26 Device 10 | . 10 Storage 14 | . 14 Energy Gun 14 | . 14 Ballistic Gun 12 | . 12 Peak Build Rating 8 | 6 8 Average Rating 6 | 4 6 On Entrance 3 | . 6 Avg Prop Armor Cover (%) . | . . Naked Turns . | . . Heaviest Build 13 | 10 13 Greatest Support 40 | 40 40 Greatest Overweight (x) . | . . Average Overweight (x) . | . . Largest Inventory Capacity 8 | 8 8 Average Capacity 7 | 7 8 Most Carried 8 | 5 8 Average Carried 6 | 3 7 Final Capacity 8 | 8 8 Final Carried 6 | 5 6 Class Distribution -------------------- 100% | Mutant Dominant Class ---------------- Mutant | -10/Materials Resources | -11 -10 ----------- Run | Yrd Mat Matter Collected 390 | 283 107 Remotely . | . . Salvage Created 495 | 105 390 Parts 22 | 8 14 Haulers Intercepted . | . . Recyclers Shooed . | . . Parts Field Recycled . | . . Retrieved Matter . | . . Parts Self-Destructed . | . . Prevented . | . . Parts Restored . | . . Kills | -11 -10 ------- Run | Yrd Mat Combat Hostiles Destroyed 5 | . 5 Guns 3 | . 3 Classes Destroyed 6 | 2 4 Builder 1 | . 1 Tunneler 2 | 2 . Recycler 2 | 1 1 Operator 1 | . 1 Watcher 1 | . 1 Grunt 5 | . 5 Best Kill Streak 3 | 3 2 Combat Bots Only 2 | . 2 Max Kills in Single Turn 2 | 2 1 Gunslinging . | . . Exploded . | . . Melee . | . . Uniques/NPCs Destroyed . | . . Combat | -11 -10 -------- Run | Yrd Mat Hostile Shots Fired 84 | . 84 Missed 18 | . 18 Hits 66 | . 66 Projectile 66 | . 66 Critical Strikes 2 | . 2 Damage Taken 905 | . 905 Core 253 | . 253 Absorbed by Shields . | . . Core Remaining (%) 100 | 100 . Volleys Fired 71 | 7 64 Largest 2 | 2 2 Hottest 90 | 70 90 Shots Fired 113 | 14 99 Gun 113 | 14 99 Cannon . | . . Launcher . | . . Special . | . . Kinetic 41 | 7 34 Thermal 72 | 7 65 Explosive . | . . Electromagnetic . | . . Robot Hit Streak 14 | 5 14 Robot Miss Streak 3 | 1 3 Penetration Max . | . . Secondary Targets . | . . Shots Hit Robots 79 | 10 69 Core Hits 20 | 4 16 Critical Kills . | . . Critical Parts Destroyed . | . . Critical Strikes 3 | . 3 Burn 3 | . 3 Melee Attacks . | . . Impact . | . . Slashing . | . . Piercing . | . . Sneak Attacks . | . . Combat Hostiles . | . . Follow-up Attacks . | . . Damage Inflicted 991 | 147 844 Guns 976 | 138 838 Cannons . | . . Explosions . | . . Melee . | . . Ramming 15 | 9 6 Kinetic 401 | 88 313 Thermal 575 | 50 525 Explosive . | . . Electromagnetic . | . . Impact . | . . Slashing . | . . Piercing . | . . Highest Corruption . | . . Average Corruption . | . . Corruption Purged . | . . Corruption Blocked . | . . Overload Shots . | . . Overflow Damage . | . . Projectiles . | . . Explosions . | . . Melee . | . . Knockbacks . | . . Impact . | . . Kinetic . | . . Secondary . | . . Self-Inflicted Damage . | . . Shots . | . . Rammed 7 | 3 4 Targets Rammed 7 | 3 4 Kicked . | . . Crushed . | . . Highest Temperature 201 | . 201 Average Temperature 67 | . 67 Received Heat Transfer 549 | . 549 Siege Activations . | . . Martial Activations . | . . Shielding Activations . | . . Robots Disrupted . | . . Combat Hostiles . | . . Robots Corrupted . | . . Combat Hostiles . | . . Parts Fried . | . . Impact Corruptions . | . . Robots Melted 2 | . 2 Combat Hostiles 2 | . 2 Parts Melted 3 | . 3 Heat Transferred 1747 | 148 1599 Parts Sabotaged . | . . Parts Stolen . | . . Parts Stripped . | . . Power Chain Reactions . | . . Alert | -11 -10 ------- Run | Yrd Mat Maximum Alert Level . | . . Low Security (%) 100 | 100 100 Level 1 . | . . Level 2 . | . . Level 3 . | . . Level 4 . | . . Level 5 . | . . High Security . | . . Max Security . | . . Peak Influence 82 | 10 82 Initial . | . . Average 7 | . 8 Influence Increases 212 | 15 197 Destroy 0b10 Robot/C 100 | . 100 Destroy 0b10 Robot/NC 35 | 15 20 Destroy Leader 32 | . 32 Lose Combat Pursuer 45 | . 45 Influence Decreases 138 | 15 123 Time Decay 88 | 15 73 Lost Part 50 | . 50 Squads Dispatched 1 | . 1 Investigation . | . . Extermination . | . . Reinforcement 1 | . 1 Assault . | . . Garrison . | . . Intercept . | . . Searches Triggered . | . . Construction Impeded . | . . Haulers Reinforced . | . . Active Scanning Responses . | . . Cargo Convoy Interrupts . | . . Stealth | -11 -10 --------- Run | Yrd Mat Distress Signals 2 | . 2 Communications Jammed . | . . Distress Signals . | . . Times Spotted 16 | . 16 Peak Tracking Total 6 | . 6 Tactical Retreats 2 | . 2 Traps | -11 -10 ------- Run | Yrd Mat Traps Triggered . | . . Indirectly . | . . Trap Hack Attempts . | . . Triggered . | . . Disarmed . | . . Reprogrammed . | . . Reused . | . . Traps Extracted . | . . Installed . | . . Triggered . | . . Machines | -11 -10 ---------- Run | Yrd Mat Machines Disabled . | . . Max in Single Turn . | . . Machines Repaired . | . . Machines Dismantled . | . . Machines Sabotaged . | . . Overloaded Fab Kills . | . . Hacking | -11 -10 --------- Run | Yrd Mat Machines Accessed 3 | . 3 Terminals 3 | . 3 Fabricators . | . . Repair Stations . | . . Recycling Units . | . . Scanalyzers . | . . Garrison Access . | . . Total Hacks 10 | . 10 Successful 5 | . 5 Failed 5 | . 5 Catastrophic 3 | . 3 Database Lockouts . | . . Manual 9 | . 9 Terminals 10 | . 10 Fabricators . | . . Repair Stations . | . . Recycling Units . | . . Scanalyzers . | . . Garrison Access . | . . Terminal Hacks 2 | . 2 Locate Traps 2 | . 2 Fabricator Hacks . | . . Repair Station Hacks . | . . Recycling Unit Hacks . | . . Scanalyzer . | . . Garrison Access Hacks . | . . Unauthorized Hacks 3 | . 3 Terminals 3 | . 3 Botnet 2 | . 2 Operators 1 | . 1 Fabricators . | . . Repair Stations . | . . Recycling Units . | . . Scanalyzers . | . . Garrison Access . | . . Data Cores Recovered . | . . Used . | . . Hacking Detections 3 | . 3 Full Trace Events . | . . Feedback Events . | . . Feedback Blocked . | . . Robot Schematics Acquired . | . . Robots Built . | . . Authchips . | . . Time . | . . Total Robot Build Rating . | . . Part Schematics Acquired . | . . Parts Built . | . . Authchips . | . . Time . | . . Total Part Build Rating . | . . Part Studies Acquired . | . . Parts Repaired . | . . Time . | . . Parts Recycled . | . . Recycled Matter . | . . Retrieved Matter . | . . Retrieved Components . | . . Parts Scanalyzed . | . . Part Schematics Acquired . | . . Parts Damaged . | . . Bothacking | -11 -10 ------------ Run | Yrd Mat Used RIF Installer . | . . Robots Hacked . | . . Non-combat . | . . Combat . | . . Robot Hacks Applied . | . . Relay Couplers Released . | . . Fabnet Peak Effective % . | . . Robots Rewired . | . . Allies Hacked . | . . Hacks Repelled . | . . Allies | -11 -10 -------- Run | Yrd Mat Total Allies . | . . Largest Group . | . . Highest-Rated Group . | . . Highest-Rated Ally . | . . Total Orders . | . . Ally Attacks . | . . Total Damage . | . . Kills . | . . Allies Corrupted . | . . Allies Melted . | . . Intel | -11 -10 ------- Run | Yrd Mat Active Infowar (turns) 454 | 16 438 Seismic 454 | 16 438 Robot Analysis Total . | . . Derelict Logs Recovered . | . . Drone Launches . | . . Drone Recoveries . | . . Exploration | -11 -10 ------------- Run | Yrd Mat Turns Passed 713 | 113 600 Spaces Moved 252 | 49 203 Core 6 | 6 . Treads 246 | 43 203 Legs . | . . Wheels . | . . Hover . | . . Flight . | . . Fastest Speed 50 | 50 160 Average Speed 157 | 146 160 Slowest Speed 160 | 160 160 Overloaded Moves . | . . Propulsion Burnouts . | . . Robots Hopped . | . . Potential Cave-ins . | . . Cave-ins Triggered . | . . Exploration Rate (%) 32 | 5 59 Regions Visited 1 Branch Regions . Pre-discovered Areas . | . . Known Exits Taken . | . . Unknown Exits Taken 1 | 1 . Scrap Searched . | . . Spaces Dug . | . . Terrain Destroyed . | . . Melee . | . . Projectile . | . . AOE . | . . Terrain Rammed . | . . Walls Destroyed . | . . Machines Disabled . | . . Actions | -11 -10 --------- Run | Yrd Mat Total 450 | 72 378 Wait 97 | . 97 Move 251 | 48 203 Hop . | . . Pick Up 10 | 5 5 Fast Attach 7 | 7 . Attach 3 | . 3 Detach 1 | 1 . Swap . | . . Drop 3 | 1 2 Fire 71 | 7 64 Melee . | . . Ram . | . . Kick . | . . Crush 7 | 3 4 Escape Stasis . | . . Rewire . | . . Trap . | . . Miscellaneous . | . . Route ------- -11/Scrapyard -10/Materials (discovered 2 exits: [*Mat] / [*Min]) History --------- Turn | Location | Event 20 | -11/Scrapyard | Discovered new exit (range 16) 114 | -11/Scrapyard | Entered Materials 309 | -10/Materials | Build established: Mutant 446 | -10/Materials | Discovered new exit (range 5) 470 | -10/Materials | Discovered new exit (range 3) 613 | -10/Materials | Core integrity fell below 50% 684 | -10/Materials | Core integrity fell below 20% 700 | -10/Materials | Lost 5 parts (1p2n2w) 714 | -10/Materials | Destroyed by G-34 Mercenary with Small Laser Last Messages --------------- 00624_ Slammed into R-06 Scavenger. 00624_ R-06 Scavenger destroyed. 00626_ Slammed into A-02 Transporter. 00627_ Acquired 8 matter. 00627_ Slammed into A-02 Transporter. 00633_ Lgt. Treads destroyed. 00650_ Assault Rifle destroyed. 00656_ Med. Laser destroyed. 00658_ Lgt. Ion Engine destroyed. 00663_ W-16 Scout sends out distress signal. 00667_ Aluminum Leg melted. 00667_ Ion Engine melted. 00667_ G-34 Mercenary destroyed. 00669_ Lgt. Treads destroyed. 00679_ W-16 Scout sends out distress signal. 00689_ G-47 Trooper destroyed. 00689_ K-01 Serf collects debris. 00692_ Critical hit (Burn: +37). 00709_ G-47 Trooper destroyed. 00709_ K-01 Serf collects debris. Map ----- +----------------------------------------------------+ | ?????????????????????????????????? | | ?????????????????????????????????? | | ?????????????????????????????????? | | ?????????????????????????????????? | | ?????????????????????????????????? | | #####????????????????????????????? | | #????????????????????????????? | | #????????????????????????????? | | #????????????????????????????? | | #????????????????????????????? | | """ #????????????????????????????? | | """ #?######???##????????????????? | | """ #?# ??? #????????????????? | | #?# """"""" #????????????????? | | ###+### """"""" #????????????????? | | # # """"""" #????????????????? | | # """"""" #????????????????? | | " + """"""" #????????????????? | | # #????????????????? | | # # #???????########## | | ## ######+#####???????# # | | ?# # #????????# # | | ?# # #????????# # | | ?# / #??###+### # | | ?# # #??# # # | | ?# # = #### #@ # | | ?# # /[*%= kg=[ # | | ?# # ####%= [#% # | | ?# # #??# %% # # | | ?# ###########??###^###########? | | ?# #??????????????#^#??????????? | | ?# #??????????????# #??????????? | | ???????????????????? ??????????? | | ???????????????????? ??????????? | | ??????????????????? T ?????????? | | ??????????????????? ?????????? | | ??????????????????? ?????????? | | ??????????????????## ##????????? | | ???????????????????# #?????????? | | ???????????????????# #?????????? | | ???????????????????# #?????????? | | ???????????????????? ??????????? | | ?????????????????????????????????? | | ?????????????????????????????????? | | ?????????????????????????????????? | | ?????????????????????????????????? | | ?????????????????????????????????? | | ?????????????????????????????????? | | ?????????????????????????????????? | | ?????????????????????????????????? | +----------------------------------------------------+ Best States ------------- Heat Dissipation 25 Energy Generation 10 Energy Capacity 125 Matter Stores 300 Matter Capacity 300 Sight Range 16 Terrain Scan Density 10 Evasion (%) 40 Recoil Reduction 2 Item Schematics ----------------- None Robot Schematics ------------------ None Fabricated ------------ Nothing Repaired ---------- Nothing Studied --------- None Alien Tech Used ----------------- None Achievements -------------- None Challenges ------------ None Game ------ Seed ZipWeaponsAnalyzer Manual? 0 Play Time 00:06:56 Cumulative 950.9 hours Start 2026.03.29 @ 12:54:07 End 2026.03.29 @ 12:57:53 Sessions 1 Manual Loads 0 Difficulty Rogue Special Mode None Game No. 854 Rogue 767 Adventurer 87 Explorer 0 Win Type - Total 65 Types 10/9/33/2/1/1/5/1/1/2 Lore% 97 Gallery% 90 Achievement% 72 Wizard Run 0 Options --------- Layout 0 ASCII 0 Keyboard 1 Movement Numpad Keybinds 0 Fullscreen 2 Font 18/SmallcapsGlow Map View 76x50 Zoom Use 0% Tactical HUD 1 Map Filters NONE Filters NONE Steam 1 RUN: cd883bbd-1e64-407d-ab5d-49d647b973b5